Cogmind - Beta 16 @@@ ROGUE MODE // 2025.12.01 @ 02:40:34 Player: tengiz Result: Destroyed by S-10 Pest with Light Assault Rifle Performance ------------- Evolutions (1) 500 Regions Visited (2) 400 Robots Destroyed (15) 75 Value Destroyed (282) 282 Prototype IDs (0) 0 Alien Tech Used (0) 0 Bonus (0) 0 TOTAL SCORE: 1257 Bonus ------- None Cogmind --------- Core Integrity 0/400 Matter 290/300 Energy 72/100 System Corruption 0% Temperature Cool (12) Movement Core (400) Ox7 Location -9/Materials Parts ------- > --- POWER (1) -------- (None) > --- PROPULSION (3) --- (None) > --- UTILITY (3) ------ Large Storage Unit Terrain Scan Processor > --- WEAPON (2) ------- Pulse Rifle > --- INVENTORY (15) --- Small Storage Unit Peak State ------------ > --- POWER ------------ Light Ion Engine > --- PROPULSION ------- Light Treads Light Treads Light Treads > --- UTILITY ---------- Large Storage Unit Improved Terrain Scanner Terrain Scan Processor > --- WEAPON ----------- Medium Laser Medium Laser > --- INVENTORY -------- Light Treads Small Storage Unit EM Pulse Gun [Rating: 12] Favorites ----------- Power Light Ion Engine Engine Light Ion Engine Propulsion Light Treads Treads Light Treads Leg Aluminum Leg Hover Unit Hover Unit Utility Improved Terrain Scanner Device Improved Terrain Scanner Storage Small Storage Unit Processor Terrain Scan Processor Weapon Medium Laser Energy Gun Medium Laser Special Weapon Welding Torch Build | -11 -10 -9 ------- Run | Yrd Mat Mat Slots Evolved 2 | . . 2 Power . | . . . Propulsion 1 | . . 1 Utility 1 | . . 1 Weapon . | . . . Parts Attached 19 | 7 7 5 Power 2 | 1 1 . Engine 2 | 1 1 . Core . | . . . Reactor . | . . . Propulsion 8 | 2 4 2 Treads 4 | . 2 2 Leg 3 | 2 1 . Wheel . | . . . Hover 1 | . 1 . Flight . | . . . Utility 4 | 2 1 1 Device 1 | 1 . . Storage 2 | 1 1 . Processor 1 | . . 1 Hackware . | . . . Protection . | . . . Artifact . | . . . Weapon 5 | 2 1 2 Energy Gun 4 | 2 1 1 Energy Cannon . | . . . Ballistic Gun . | . . . Ballistic Cannon . | . . . Launcher . | . . . Special Weapon 1 | . . 1 Impact Weapon . | . . . Slashing Weapon . | . . . Piercing Weapon . | . . . Special Melee Weapon . | . . . Unidentified Prototypes . | . . . Parts Lost 11 | . 1 10 Power 2 | . 1 1 Propulsion 4 | . . 4 Utility 1 | . . 1 Weapon 4 | . . 4 Highest Loss Streak 10 | . 1 10 To Critical Strikes . | . . . Average Backups 3 | 1 3 2 Power . | . . . Propulsion 1 | . 1 1 Utility . | . . 1 Weapon . | . 1 . Tool/Special . | . . . Unused Backups 1 | . 1 . Power . | . . . Propulsion . | . . . Utility 1 | . 1 . Weapon . | . . . Tool/Special . | . . . Average Slot Usage (%) 97 | . 100 93 Engine 12 | . 14 9 Treads 14 | . 3 30 Leg 14 | . 24 . Device 12 | . 14 10 Storage 12 | . 14 11 Processor 4 | . . 11 Energy Gun 24 | . 28 19 Peak Build Rating 12 | 9 9 12 Average Rating 9 | 5 8 11 On Entrance 6 | . 9 9 Avg Prop Armor Cover (%) . | . . . Naked Turns . | . . . Heaviest Build 28 | 13 28 28 Greatest Support 60 | 20 40 60 Greatest Overweight (x) 2 | . 2 . Average Overweight (x) . | . . . Largest Inventory Capacity 15 | 8 15 15 Average Capacity 10 | 6 8 15 Most Carried 6 | 3 6 5 Average Carried 3 | 1 3 2 Final Capacity 15 | 8 15 15 Final Carried 6 | 2 6 1 Class Distribution -------------------- 100% | Mutant Dominant Class ---------------- Mutant | -10/Materials Mutant | -9/Materials Resources | -11 -10 -9 ----------- Run | Yrd Mat Mat Matter Collected 362 | 130 178 54 Remotely . | . . . Salvage Created 490 | 74 196 220 Parts 32 | 6 14 12 Haulers Intercepted 1 | . . 1 Recyclers Shooed 1 | 1 . . Parts Field Recycled . | . . . Retrieved Matter . | . . . Parts Self-Destructed . | . . . Prevented . | . . . Parts Restored . | . . . Kills | -11 -10 -9 ------- Run | Yrd Mat Mat Combat Hostiles Destroyed 9 | . 6 3 Guns 9 | . 6 3 Classes Destroyed 8 | 2 3 3 Worker 1 | . . 1 Builder 2 | . 2 . Tunneler 1 | 1 . . Hauler 1 | . . 1 Recycler 1 | 1 . . Swarmer 3 | . 3 . Grunt 4 | . 3 1 Sentry 2 | . . 2 Best Kill Streak 4 | 2 3 4 Combat Bots Only 3 | . 3 2 Max Kills in Single Turn 1 | 1 1 1 Gunslinging . | . . . Exploded . | . . . Melee . | . . . Uniques/NPCs Destroyed . | . . . Combat | -11 -10 -9 -------- Run | Yrd Mat Mat Hostile Shots Fired 226 | . 57 169 Missed 65 | . 16 49 Hits 161 | . 41 120 Projectile 161 | . 41 120 Critical Strikes 1 | . . 1 Damage Taken 1713 | . 354 1359 Core 501 | . 97 404 Absorbed by Shields . | . . . Core Remaining (%) 80 | 100 61 . Volleys Fired 66 | 7 27 32 Largest 2 | 2 2 2 Hottest 100 | 90 100 100 Shots Fired 121 | 14 50 57 Gun 120 | 14 50 56 Cannon . | . . . Launcher . | . . . Special 1 | . . 1 Kinetic . | . . . Thermal 102 | 7 49 46 Explosive . | . . . Electromagnetic 19 | 7 1 11 Robot Hit Streak 7 | 3 5 7 Robot Miss Streak 5 | 2 5 3 Penetration Max . | . . . Secondary Targets 2 | . . 2 Max Gunslinging Chain 1 | . . 1 Shots Hit Robots 70 | 8 25 37 Core Hits 26 | 4 11 11 Critical Kills . | . . . Critical Parts Destroyed . | . . . Critical Strikes 8 | . 2 6 Burn 8 | . 2 6 Melee Attacks . | . . . Impact . | . . . Slashing . | . . . Piercing . | . . . Sneak Attacks . | . . . Combat Hostiles . | . . . Follow-up Attacks . | . . . Damage Inflicted 1080 | 115 375 590 Guns 958 | 104 375 479 Cannons . | . . . Explosions 96 | . . 96 Melee . | . . . Ramming 22 | 11 . 11 Kinetic . | . . . Thermal 896 | 50 375 471 Explosive . | . . . Electromagnetic 162 | 54 . 108 Impact . | . . . Slashing . | . . . Piercing . | . . . Highest Corruption . | . . . Average Corruption . | . . . Corruption Purged . | . . . Corruption Blocked . | . . . Overload Shots . | . . . Overflow Damage . | . . . Projectiles . | . . . Explosions . | . . . Melee . | . . . Knockbacks 1 | . . 1 Impact 1 | . . 1 Kinetic . | . . . Secondary . | . . . Self-Inflicted Damage 21 | . . 21 Shots 1 | . . 1 Rammed 5 | . . 5 Targets Rammed 7 | 2 . 5 Kicked 2 | 2 . . Crushed . | . . . Highest Temperature 405 | 210 405 308 Average Temperature 123 | 106 143 107 Received Heat Transfer 588 | . 66 522 Effects 3 | . 2 1 Energy Bleed 1 | . 1 . Interference 2 | . 1 1 Siege Activations . | . . . Martial Activations . | . . . Shielding Activations . | . . . Robots Disrupted . | . . . Combat Hostiles . | . . . Robots Corrupted . | . . . Combat Hostiles . | . . . Parts Fried . | . . . Impact Corruptions . | . . . Robots Melted . | . . . Combat Hostiles . | . . . Parts Melted 9 | . 3 6 Heat Transferred 3098 | 148 1258 1692 Parts Sabotaged . | . . . Parts Stolen . | . . . Parts Stripped . | . . . Power Chain Reactions 1 | . . 1 Alert | -11 -10 -9 ------- Run | Yrd Mat Mat Maximum Alert Level . | . . . Low Security (%) 100 | 100 100 100 Level 1 . | . . . Level 2 . | . . . Level 3 . | . . . Level 4 . | . . . Level 5 . | . . . High Security . | . . . Max Security . | . . . Peak Influence 121 | 5 121 46 Initial 22 | . . 22 Average 27 | 1 42 11 Influence Increases 333 | 10 211 112 Destroy 0b10 Robot/C 180 | . 120 60 Destroy 0b10 Robot/NC 30 | 10 10 10 Destroy Leader 42 | . 20 22 Successful Hack 14 | . . 14 Destroy Structure 7 | . 1 6 Lose Combat Pursuer 60 | . 60 . Influence Decreases 333 | 10 156 167 Entered New Map 33 | . . 33 Time Decay 249 | 10 146 93 Lost Part 51 | . 10 41 Squads Dispatched 1 | . 1 . Investigation 1 | . 1 . Extermination . | . . . Reinforcement . | . . . Assault . | . . . Garrison . | . . . Intercept . | . . . Searches Triggered . | . . . Construction Impeded . | . . . Haulers Reinforced . | . . . Active Scanning Responses . | . . . Cargo Convoy Interrupts . | . . . Stealth | -11 -10 -9 --------- Run | Yrd Mat Mat Distress Signals 3 | . 1 2 Communications Jammed . | . . . Distress Signals . | . . . Times Spotted 27 | . 9 18 Peak Tracking Total 15 | . 6 15 Tactical Retreats 2 | . 2 . Traps | -11 -10 -9 ------- Run | Yrd Mat Mat Traps Triggered 1 | . 1 . Indirectly . | . . . Trap Hack Attempts . | . . . Triggered . | . . . Disarmed . | . . . Reprogrammed . | . . . Reused . | . . . Traps Extracted . | . . . Installed . | . . . Triggered . | . . . Machines | -11 -10 -9 ---------- Run | Yrd Mat Mat Machines Disabled . | . . . Max in Single Turn . | . . . Machines Repaired . | . . . Machines Dismantled . | . . . Machines Sabotaged . | . . . Overloaded Fab Kills . | . . . Hacking | -11 -10 -9 --------- Run | Yrd Mat Mat Machines Accessed 2 | . 1 1 Terminals 2 | . 1 1 Fabricators . | . . . Repair Stations . | . . . Recycling Units . | . . . Scanalyzers . | . . . Garrison Access . | . . . Total Hacks 4 | . 2 2 Successful 1 | . . 1 Failed 3 | . 2 1 Catastrophic . | . . . Database Lockouts . | . . . Manual . | . . . Terminals 4 | . 2 2 Fabricators . | . . . Repair Stations . | . . . Recycling Units . | . . . Scanalyzers . | . . . Garrison Access . | . . . Terminal Hacks 1 | . . 1 Zone Layout 1 | . . 1 Fabricator Hacks . | . . . Repair Station Hacks . | . . . Recycling Unit Hacks . | . . . Scanalyzer . | . . . Garrison Access Hacks . | . . . Unauthorized Hacks . | . . . Terminals . | . . . Fabricators . | . . . Repair Stations . | . . . Recycling Units . | . . . Scanalyzers . | . . . Garrison Access . | . . . Data Cores Recovered . | . . . Used . | . . . Hacking Detections 2 | . 1 1 Full Trace Events . | . . . Feedback Events . | . . . Feedback Blocked . | . . . Robot Schematics Acquired . | . . . Robots Built . | . . . Authchips . | . . . Time . | . . . Total Robot Build Rating . | . . . Part Schematics Acquired . | . . . Parts Built . | . . . Authchips . | . . . Time . | . . . Total Part Build Rating . | . . . Part Studies Acquired . | . . . Parts Repaired . | . . . Time . | . . . Parts Recycled . | . . . Recycled Matter . | . . . Retrieved Matter . | . . . Retrieved Components . | . . . Parts Scanalyzed . | . . . Part Schematics Acquired . | . . . Parts Damaged . | . . . Bothacking | -11 -10 -9 ------------ Run | Yrd Mat Mat Used RIF Installer . | . . . Robots Hacked . | . . . Non-combat . | . . . Combat . | . . . Robot Hacks Applied . | . . . Relay Couplers Released . | . . . Fabnet Peak Effective % . | . . . Robots Rewired . | . . . Allies Hacked . | . . . Hacks Repelled . | . . . Allies | -11 -10 -9 -------- Run | Yrd Mat Mat Total Allies . | . . . Largest Group . | . . . Highest-Rated Group . | . . . Highest-Rated Ally . | . . . Total Orders . | . . . Ally Attacks . | . . . Total Damage . | . . . Kills . | . . . Allies Corrupted . | . . . Allies Melted . | . . . Intel | -11 -10 -9 ------- Run | Yrd Mat Mat Active Infowar (turns) 880 | 9 526 345 Terrain 880 | 9 526 345 Robot Analysis Total . | . . . Derelict Logs Recovered . | . . . Drone Launches . | . . . Drone Recoveries . | . . . Exploration | -11 -10 -9 ------------- Run | Yrd Mat Mat Turns Passed 980 | 89 526 365 Spaces Moved 510 | 50 342 118 Core 9 | 9 . . Treads 154 | . 36 118 Legs 343 | 41 302 . Wheels . | . . . Hover 4 | . 4 . Flight . | . . . Fastest Speed 50 | 50 120 160 Average Speed 131 | 107 125 160 Slowest Speed 190 | 120 190 160 Overloaded Moves . | . . . Propulsion Burnouts . | . . . Robots Hopped . | . . . Potential Cave-ins . | . . . Cave-ins Triggered . | . . . Exploration Rate (%) 16 | 4 34 10 Regions Visited 2 Branch Regions . Pre-discovered Areas . | . . . Known Exits Taken . | . . . Unknown Exits Taken 2 | 1 1 . Scrap Searched . | . . . Spaces Dug . | . . . Terrain Destroyed 6 | . . 6 Melee . | . . . Projectile . | . . . AOE 6 | . . 6 Terrain Rammed . | . . . Walls Destroyed . | . . . Machines Disabled . | . . . Actions | -11 -10 -9 --------- Run | Yrd Mat Mat Total 692 | 68 389 235 Wait 71 | . . 71 Move 508 | 49 341 118 Hop . | . . . Pick Up 13 | 3 8 2 Fast Attach 6 | 6 . . Attach 8 | 1 1 6 Detach . | . . . Swap 8 | . 8 . Drop 5 | . 4 1 Fire 66 | 7 27 32 Melee . | . . . Ram . | . . . Kick 2 | 2 . . Crush 5 | . . 5 Escape Stasis . | . . . Rewire . | . . . Trap . | . . . Miscellaneous . | . . . Route ------- -11/Scrapyard -10/Materials -9/Materials History --------- Turn | Location | Event 5 | -11/Scrapyard | Discovered new exit (range 16) 90 | -11/Scrapyard | Entered Materials 313 | -10/Materials | Build established: Mutant 500 | -10/Materials | Discovered new exit (range 12) 616 | -10/Materials | Entered another Materials area 616 | -9/Materials | Evolved 2 slots: Propulsion x1, Utility x1 971 | -9/Materials | Core integrity fell below 50% 979 | -9/Materials | Core integrity fell below 20% 981 | -9/Materials | Destroyed by S-10 Pest with Light Assault Rifle Last Messages --------------- 00950_ U-05 Engineer lays Concrete. 00951_ U-05 Engineer destroyed. 00952_ Slammed into G-47 Trooper. 00952_ U-05 Engineer lays Concrete. 00953_ U-05 Engineer builds a Wall. 00954_ Slammed into G-34 Mercenary. 00955_ Lgt. Treads destroyed. 00957_ Acquired Welding Torch. 00958_ U-05 Engineer lays Concrete. 00959_ Welding Torch destroyed. 00960_ U-05 Engineer builds a Wall. 00961_ Imp. Terrain Scanner destroyed. 00962_ U-05 Engineer builds a Wall. 00962_ Lgt. Treads destroyed. 00963_ U-05 Engineer builds a Wall. 00965_ Lgt. Treads destroyed. 00966_ S-10 Pest destroyed. 00967_ W-16 Scout sends out distress signal. 00978_ Acquired Pulse Rifle. 00978_ Lgt. Treads destroyed. Map ----- +----------------------------------------------------+ | ##??# ?#??????????????????????????????????? | | #########?### ? ??????????????????????????????? | | ########?####?? ?????????????????????????????? | | ######??#??#? ?? ?????????????????????????????? | | ##?####?#?#?#?????????????????????????????? | | """ # ##???????????????????????????????? | | """ # ?""" ? ?####????????????????????????????? | | """ # """? #?#??????????????????????????????? | | # "?" ? ###?# ?????????????????????????? | | # ? ? ?#?## #????????????????????????? | | # "" ??##?## +????????????????????????? | | # "T ? #?### # ???????????????????????? | | " # "" ? ??##### #????????????????????????? | | ###### ###?# #????????????????????????? | | #######+#####?##### #????????????????????????? | | ####??## #????????????????????????? | | ##?#?### #?#??????????????????????? | | ##?##?## ##???????????????????????? | | ######## #####??# #?##?????????????????????? | | ? # ###?#### ##?#?????????????????????? | | """? ?# #####?## ######???????????????????? | | ?""" # ####### s !!#???????????????????? | | ??" ??# %%*!! ggs !!#???????????????????? | | ? ? # !=%=! asgsss!!##??????????????????? | | "?? ?# !t!=*% g s !!#???????????????????? | | ?""? ? # ####### u ss @[#???????????????????? | | ??" ? # ######### ### [[#???????????????????? | | ? ?# #??## =#######???????????????????? | | ?###+??# #?##? %[ ???????????????????????? | | ? ??? ##??# " ? ??????????????????????? | | ? ? ? ##??# ???????????????????????? | | ?? ? #???# ###+#?????????????????????? | | ? #########??### ##?? ??????????????????????? | | ? ??##?####????# #??????????????????????????? | | ? ?##? ?? ?????# ?? ????????????????????????? | | ???#??? ? ?? ? / ?? ????????????????????????? | | ??????#? ?? ??# ???????????????????????????? | | ????#?? ??? ?? ? ???????????????????????????? | | ??????##?????????? ???????????????????????????? | | ???????????????????????????????????????????????? | | ???????????????????????????????????????????????? | | ???????????????????????????????????????????????? | | ???????????????????????????????????????????????? | | ???????????????????????????????????????????????? | | ???????????????????????????????????????????????? | | ???????????????????????????????????????????????? | | ???????????????????????????????????????????????? | | ???????????????????????????????????????????????? | | ???????????????????????????????????????????????? | | ???????????????????????????????????????????????? | +----------------------------------------------------+ Best States ------------- Heat Dissipation 28 Energy Generation 10 Energy Capacity 125 Matter Stores 300 Matter Capacity 300 Sight Range 16 Terrain Scan Range 16 Terrain Scan Density 85 Evasion (%) 55 Recoil Reduction 3 Item Schematics ----------------- None Robot Schematics ------------------ None Fabricated ------------ Nothing Repaired ---------- Nothing Studied --------- None Alien Tech Used ----------------- None Achievements -------------- None Challenges ------------ None Game ------ Seed HardenedBombardmentMultitool Manual? 0 Play Time 00:09:38 Cumulative 8.7 hours Start 2025.12.01 @ 02:33:22 End 2025.12.01 @ 02:40:34 Sessions 1 Manual Loads 0 Difficulty Rogue Special Mode None Game No. 29 Rogue 29 Adventurer 0 Explorer 0 Win Type - Total 0 Types 0/0/0/0/0/0/0/0/0/0 Lore% 3 Gallery% 14 Achievement% 11 Wizard Run 0 Options --------- Layout 1 ASCII 0 Keyboard 0 Movement Arrows Keybinds 0 Fullscreen 1 Font 24/Smallcaps Map View 50x35 Zoom Use 0% Tactical HUD 1 Map Filters NONE Filters NONE Steam 1 RUN: e95886c5-de50-4dcb-aa8e-c06432aadcd8